[Event "9. Korbacher Open 2017"]
[Site "Korbach"]
[Date "2017.10.21"]
[Round "5"]
[White "Braun, Ingram"]
[Black "Heinemann, Ernst"]
[Result "0-1"]
[ECO "B12"]
[WhiteElo "2042"]
[BlackElo "2099"]
[Annotator "NA"]
[PlyCount "116"]
[EventDate "2017.??.??"]
[EventType "swiss"]
[EventCountry "GER"]
[SourceTitle "playchess.com"]
[Source "ChessBase"]
[SourceQuality "1"]
[TimeControl "40/5400+30:1800+30"]

1. e4 {[%emt 0:00:00]} c6 {[%emt 0:00:12]} 2. d4 {[%emt 0:00:00]} d5 {[%emt 0:00:04]} 3. e5 {[%emt 0:00:00]} g6 {[%emt 0:01:05]} 4. Nf3 {[%emt 0:02:24]} Bg4 {[%emt 0:02:29]} 5. Be2 {[%emt 0:01:21]} e6 {[%emt 0:05:48]} 6. O-O {[%emt 0:00:34]} Bxf3 {[%emt 0:01:03]} 7. Bxf3 {[%emt 0:00:08]} Nd7 {[%emt 0:01:56]} 8. Be3 {[%emt 0:06:22]} Ne7 {[%emt 0:03:58]} 9. Nd2 {[%emt 0:01:47]} Nf5 {[%emt 0:00:50]} 10. c4 {[%emt 0:01:21]} Nxe3 {[%emt 0:02:19]} 11. fxe3 {[%emt 0:00:03]} Bh6 {[%emt 0:00:33]} 12. Qe2 {[%emt 0:01:39]} O-O {[%emt 0:02:05]} 13. Rae1 {[%emt 0:07:13]} Rc8 {[%emt 0:02:33]} 14. b3 {[%emt 0:04:15]} b6 {[%emt 0:02:15]} 15. e4 {[%emt 0:10:11]} Qg5 {[%emt 0:03:32]} 16. Rf2 {[%emt 0:00:44]} Qxd2 {[%emt 0:03:55]} 17. Qxd2 {[%emt 0:00:10]} Bxd2 {[%emt 0:00:04]} 18. Rxd2 {[%emt 0:00:08]} dxc4 {[%emt 0:00:19]} 19. bxc4 {[%emt 0:06:41]} c5 {[%emt 0:02:11]} 20. d5 {[%emt 0:01:23]} Nxe5 {[%emt 0:00:36]} 21. Be2 {[%emt 0:00:55]} Rcd8 {[%emt 0:06:25]} 22. Red1 {[%emt 0:01:39]} exd5 {[%emt 0:00:56]} 23. Rxd5 {[%emt 0:01:55]} Rxd5 {[%emt 0:00:16]} 24. Rxd5 {[%emt 0:02:24]} f6 {[%emt 0:01:16]} 25. a4 {[%emt 0:06:42]} Rf7 {[%emt 0:03:03]} 26. Rd8+ {[%emt 0:02:50]} Kg7 {[%emt 0:04:57]} 27. Rc8 {[%emt 0:04:13]} Rd7 {[%emt 0:02:28]} 28. a5 {[%emt 0:04:17]} h5 {[%emt 0:02:51]} 29. Kf1 {[%emt 0:03:51]} Kf7 {[%emt 0:01:27]} 30. Ke1 {[%emt 0:04:36]} Ke7 {[%emt 0:00:15]} 31. axb6 {[%emt 0:02:41]} axb6 {[%emt 0:00:13]} 32. Rb8 {[%emt 0:00:08]} Rd4 {[%emt 0:10:48]} 33. Rxb6 {[%emt 0:04:57]} Rxe4 {[%emt 0:01:53]} 34. Rb5 {[%emt 0:02:13]} Nc6 {[%emt 0:02:20]} 35. Rb7+ {[%emt 0:02:48]} Kd6 {[%emt 0:00:54]} 36. Kf2 {[%emt 0:04:10]} Re7 {[%emt 0:00:26]} 37. Rb6 {[%emt 0:01:27]} Kc7 {[%emt 0:00:10]} 38. Ra6 {[%emt 0:01:52]} Kb7 {[%emt 0:01:40]} 39. Ra2 {[%emt 0:02:01]} Nd4 {[%emt 0:00:46]} 40. Bd3 {[%emt 0:00:33]} g5 {[%emt 0:30:46]} 41. Rb2+ {[%emt 0:33:43]} Kc7 {[%emt 0:00:28]} 42. Ra2 {[%emt 0:00:22]} Kd6 {[%emt 0:00:51]} 43. Ra8 {[%emt 0:00:00]} h4 {[%emt 0:00:00]} 44. Rd8+ {[%emt 0:00:00]} Rd7 {[%emt 0:00:00]} 45. Rf8 {[%emt 0:00:00]} Ke7 {[%emt 0:00:00]} 46. Rc8 {[%emt 0:00:00]} Kd6 {[%emt 0:00:00]} 47. Rf8 {[%emt 0:00:00]} Ke5 {[%emt 0:00:00]} 48. Re8+ {[%emt 0:00:00]} Ne6 {[%emt 0:00:00]} 49. Be4 {[%emt 0:00:00]} Rd8 {[%emt 0:00:00]} 50. Re7 {[%emt 0:00:00]} Kd6 {[%emt 0:00:00]} 51. Rf7 {[%emt 0:00:00]} Rf8 {[%emt 0:00:00]} 52. Ra7 {[%emt 0:00:00]} f5 {[%emt 0:00:00]} 53. Bd5 {[%emt 0:00:00]} Nf4 {[%emt 0:00:00]} 54. Ra8 {[%emt 0:05:59]} Nd3+ {[%emt 0:00:00]} 55. Ke3 {[%emt 0:00:22]} Rxa8 {[%emt 0:00:00]} 56. Bxa8 {[%emt 0:00:02]} Ne5 {[%emt 0:00:00]} 57. Bd5 {[%emt 0:00:27]} Ng4+ {[%emt 0:00:00]} 58. Kd3 {[%emt 0:02:42]} Nxh2 {[%emt 0:00:00]} 0-1

[Event "9. Korbacher Open 2017"]
[Site "Korbach"]
[Date "2017.10.21"]
[Round "5"]
[White "Schmidt, Matthias"]
[Black "Plaza Reino, Mercedes"]
[Result "1-0"]
[ECO "B20"]
[WhiteElo "2031"]
[BlackElo "1822"]
[Annotator "NA"]
[PlyCount "73"]
[EventDate "2017.??.??"]
[EventType "swiss"]
[EventCountry "GER"]
[SourceTitle "playchess.com"]
[Source "ChessBase"]
[SourceQuality "1"]
[TimeControl "40/5400+30:1800+30"]

1. e4 {[%emt 0:00:00]} c5 {[%emt 0:00:06]} 2. b3 {[%emt 0:00:00]} e6 {[%emt 0:00:55]} 3. Nc3 {[%emt 0:03:23]} a6 {[%emt 0:03:09]} 4. Bb2 {[%emt 0:01:12]} d6 {[%emt 0:01:22]} 5. f4 {[%emt 0:06:11]} b5 {[%emt 0:04:10]} 6. Nf3 {[%emt 0:03:03]} Bb7 {[%emt 0:01:32]} 7. d3 {[%emt 0:08:27]} Nd7 {[%emt 0:06:33]} 8. Qe2 {[%emt 0:09:01]} Nb6 {[%emt 0:08:18]} 9. g3 {[%emt 0:04:28]} d5 {[%emt 0:05:47]} 10. exd5 {[%emt 0:01:37]} Nxd5 {[%emt 0:00:15]} 11. Nxd5 {[%emt 0:02:56]} Bxd5 {[%emt 0:00:33]} 12. Bg2 {[%emt 0:01:06]} Nf6 {[%emt 0:02:03]} 13. c4 {[%emt 0:03:42]} Bb7 {[%emt 0:06:06]} 14. O-O {[%emt 0:06:08]} Be7 {[%emt 0:17:22]} 15. f5 {[%emt 0:04:27]} O-O {[%emt 0:23:03]} 16. fxe6 {[%emt 0:01:06]} fxe6 {[%emt 0:08:12]} 17. Qxe6+ {[%emt 0:08:18]} Kh8 {[%emt 0:00:09]} 18. Ne5 {[%emt 0:14:48]} Bxg2 {[%emt 0:01:52]} 19. Kxg2 {[%emt 0:00:05]} Qe8 {[%emt 0:01:24]} 20. Nc6 {[%emt 0:05:33]} Bd8 {[%emt 0:02:04]} 21. Qxe8 {[%emt 0:03:27]} Rxe8 {[%emt 0:00:11]} 22. Nxd8 {[%emt 0:00:35]} Re2+ {[%emt 0:01:05]} 23. Rf2 {[%emt 0:00:53]} Rxf2+ {[%emt 0:00:03]} 24. Kxf2 {[%emt 0:00:27]} Rxd8 {[%emt 0:00:05]} 25. Bxf6 {[%emt 0:00:47]} gxf6 {[%emt 0:00:02]} 26. Ke3 {[%emt 0:00:36]} Kg7 {[%emt 0:01:59]} 27. cxb5 {[%emt 0:04:53]} axb5 {[%emt 0:00:03]} 28. a4 {[%emt 0:00:18]} bxa4 {[%emt 0:01:07]} 29. bxa4 {[%emt 0:00:34]} Ra8 {[%emt 0:01:50]} 30. a5 {[%emt 0:01:06]} Kf7 {[%emt 0:02:27]} 31. a6 {[%emt 0:01:11]} Ke6 {[%emt 0:00:52]} 32. Ke4 {[%emt 0:00:48]} Ra7 {[%emt 0:00:21]} 33. Ra5 {[%emt 0:01:00]} Kf7 {[%emt 0:01:08]} 34. Kd5 {[%emt 0:00:18]} Ke7 {[%emt 0:00:38]} 35. Kxc5 {[%emt 0:00:10]} Kd8 {[%emt 0:00:38]} 36. Kb6 {[%emt 0:00:19]} Rd7 {[%emt 0:00:30]} 37. a7 {[%emt 0:00:17]} 1-0

[Event "9. Korbacher Open 2017"]
[Site "Korbach"]
[Date "2017.10.21"]
[Round "5"]
[White "Stahnke, Thorsten"]
[Black "Goetz, Jan"]
[Result "0-1"]
[ECO "A21"]
[WhiteElo "2026"]
[BlackElo "1890"]
[Annotator "NA"]
[PlyCount "57"]
[EventDate "2017.??.??"]
[EventType "swiss"]
[EventCountry "GER"]
[SourceTitle "playchess.com"]
[Source "ChessBase"]
[SourceQuality "1"]
[TimeControl "40/5400+30:1800+30"]

1. c4 {[%emt 0:00:00]} e5 {[%emt 0:00:42]} 2. Nc3 {[%emt 0:00:02]} c5 {[%emt 0:00:03]} 3. g3 {[%emt 0:00:30]} Nc6 {[%emt 0:00:14]} 4. Bg2 {[%emt 0:00:15]} g6 {[%emt 0:00:01]} 5. Nf3 {[%emt 0:00:32]} Bg7 {[%emt 0:00:03]} 6. O-O {[%emt 0:00:29]} Nge7 {[%emt 0:00:03]} 7. Ne1 {[%emt 0:06:37]} d6 {[%emt 0:02:32]} 8. Nc2 {[%emt 0:02:29]} Be6 {[%emt 0:00:43]} 9. Ne3 {[%emt 0:00:30]} O-O {[%emt 0:01:04]} 10. Ned5 {[%emt 0:00:34]} Qd7 {[%emt 0:00:43]} 11. d3 {[%emt 0:07:18]} Bh3 {[%emt 0:02:08]} 12. Bh6 {[%emt 0:01:34]} Bxg2 {[%emt 0:03:23]} 13. Kxg2 {[%emt 0:00:11]} f5 {[%emt 0:00:39]} 14. Bxg7 {[%emt 0:00:15]} Kxg7 {[%emt 0:00:02]} 15. a3 {[%emt 0:13:21]} f4 {[%emt 0:04:42]} 16. Nxe7 {[%emt 0:09:05]} Qxe7 {[%emt 0:05:28]} 17. Ne4 {[%emt 0:02:19]} Rf7 {[%emt 0:02:41]} 18. Qe1 {[%emt 0:14:11]} Nd4 {[%emt 0:04:35]} 19. Rc1 {[%emt 0:00:12]} Nxe2 {[%emt 0:01:00]} 20. Qxe2 {[%emt 0:01:05]} f3+ {[%emt 0:00:01]} 21. Qxf3 {[%emt 0:00:02]} Rxf3 {[%emt 0:00:01]} 22. Kxf3 {[%emt 0:00:13]} Rd8 {[%emt 0:03:11]} 23. Nc3 {[%emt 0:00:22]} Qg5 {[%emt 0:02:23]} 24. Rcd1 {[%emt 0:00:45]} h5 {[%emt 0:00:54]} 25. h4 {[%emt 0:01:27]} Qg4+ {[%emt 0:03:00]} 26. Kg2 {[%emt 0:00:13]} g5 {[%emt 0:01:53]} 27. hxg5 {[%emt 0:12:23]} h4 {[%emt 0:05:03]} 28. Rh1 {[%emt 0:00:06]} Rf8 {[%emt 0:08:23]} 29. Rh2 {[%emt 0:16:59]} 0-1

[Event "9. Korbacher Open 2017"]
[Site "Korbach"]
[Date "2017.10.21"]
[Round "5"]
[White "Rubina, Tatiana"]
[Black "Powalla, Christian"]
[Result "1-0"]
[ECO "C58"]
[WhiteElo "2022"]
[BlackElo "1816"]
[Annotator "NA"]
[PlyCount "79"]
[EventDate "2017.??.??"]
[EventType "swiss"]
[EventCountry "GER"]
[SourceTitle "playchess.com"]
[Source "ChessBase"]
[SourceQuality "1"]
[TimeControl "40/5400+30:1800+30"]

1. e4 {[%emt 0:00:00]} e5 {[%emt 0:00:04]} 2. Nf3 {[%emt 0:00:00]} Nc6 {[%emt 0:00:03]} 3. Bc4 {[%emt 0:00:00]} Nf6 {[%emt 0:00:05]} 4. Ng5 {[%emt 0:00:00]} d5 {[%emt 0:00:06]} 5. exd5 {[%emt 0:00:00]} Na5 {[%emt 0:00:09]} 6. Bb5+ {[%emt 0:00:07]} c6 {[%emt 0:00:07]} 7. dxc6 {[%emt 0:00:05]} bxc6 {[%emt 0:00:04]} 8. Qf3 {[%emt 0:00:54]} Rb8 {[%emt 0:00:10]} 9. Bxc6+ {[%emt 0:00:47]} Nxc6 {[%emt 0:00:08]} 10. Qxc6+ {[%emt 0:00:04]} Nd7 {[%emt 0:00:45]} 11. d3 {[%emt 0:07:21]} Be7 {[%emt 0:04:11]} 12. Nf3 {[%emt 0:07:55]} Rb6 {[%emt 0:02:15]} 13. Qe4 {[%emt 0:02:13]} Bb7 {[%emt 0:00:44]} 14. Qe2 {[%emt 0:00:25]} O-O {[%emt 0:04:04]} 15. O-O {[%emt 0:05:24]} Rg6 {[%emt 0:01:34]} 16. Nbd2 {[%emt 0:01:22]} f5 {[%emt 0:03:46]} 17. Nc4 {[%emt 0:04:42]} e4 {[%emt 0:07:43]} 18. Ne1 {[%emt 0:02:49]} exd3 {[%emt 0:09:30]} 19. Qxd3 {[%emt 0:02:02]} Be4 {[%emt 0:05:04]} 20. Qe2 {[%emt 0:02:53]} Bc5 {[%emt 0:03:03]} 21. Be3 {[%emt 0:02:47]} f4 {[%emt 0:01:36]} 22. f3 {[%emt 0:06:08]} Bxe3+ {[%emt 0:03:20]} 23. Nxe3 {[%emt 0:00:15]} Bb7 {[%emt 0:02:14]} 24. Ng4 {[%emt 0:10:32]} Ba6 {[%emt 0:03:29]} 25. Nd3 {[%emt 0:07:58]} h5 {[%emt 0:05:41]} 26. Qe4 {[%emt 0:02:30]} Qb6+ {[%emt 0:07:45]} 27. Ngf2 {[%emt 0:00:52]} Bb7 {[%emt 0:02:58]} 28. Qe2 {[%emt 0:04:19]} h4 {[%emt 0:02:11]} 29. Kh1 {[%emt 0:01:13]} Re6 {[%emt 0:11:11]} 30. Qd1 {[%emt 0:01:02]} Ne5 {[%emt 0:05:49]} 31. b3 {[%emt 0:09:20]} Rd8 {[%emt 0:04:29]} 32. Qc1 {[%emt 0:03:07]} Nxf3 {[%emt 0:03:21]} 33. Nxf4 {[%emt 0:03:19]} Rf6 {[%emt 0:03:30]} 34. Ng4 {[%emt 0:01:30]} Rxf4 {[%emt 0:04:42]} 35. Qxf4 {[%emt 0:01:04]} Nd2 {[%emt 0:00:43]} 36. Qf7+ {[%emt 0:03:05]} Kh8 {[%emt 0:00:26]} 37. Rf5 {[%emt 0:02:26]} Bxg2+ {[%emt 0:00:41]} 38. Kxg2 {[%emt 0:00:03]} Qf2+ {[%emt 0:00:27]} 39. Nxf2 {[%emt 0:01:16]} h3+ {[%emt 0:00:49]} 40. Kxh3 {[%emt 0:00:58]} 1-0

[Event "9. Korbacher Open 2017"]
[Site "Korbach"]
[Date "2017.10.21"]
[Round "5"]
[White "Li, Zhuoling"]
[Black "Trunz, Elena"]
[Result "0-1"]
[ECO "B85"]
[WhiteElo "2007"]
[BlackElo "2127"]
[Annotator "NA"]
[PlyCount "68"]
[EventDate "2017.??.??"]
[EventType "swiss"]
[EventCountry "GER"]
[SourceTitle "playchess.com"]
[Source "ChessBase"]
[SourceQuality "1"]
[TimeControl "40/5400+30:1800+30"]

1. e4 {[%emt 0:00:10]} c5 {[%emt 0:00:05]} 2. Nf3 {[%emt 0:00:06]} d6 {[%emt 0:00:08]} 3. d4 {[%emt 0:00:08]} cxd4 {[%emt 0:00:08]} 4. Nxd4 {[%emt 0:00:06]} Nf6 {[%emt 0:00:10]} 5. Nc3 {[%emt 0:00:07]} a6 {[%emt 0:00:06]} 6. Be2 {[%emt 0:00:12]} e6 {[%emt 0:00:14]} 7. O-O {[%emt 0:00:45]} Qc7 {[%emt 0:00:25]} 8. a4 {[%emt 0:00:26]} b6 {[%emt 0:01:29]} 9. f4 {[%emt 0:01:10]} Bb7 {[%emt 0:00:21]} 10. Bf3 {[%emt 0:00:14]} Nbd7 {[%emt 0:00:54]} 11. Kh1 {[%emt 0:01:02]} Be7 {[%emt 0:00:31]} 12. g4 {[%emt 0:01:46]} Nc5 {[%emt 0:07:09]} 13. Qe2 {[%emt 0:00:58]} O-O {[%emt 0:02:08]} 14. g5 {[%emt 0:03:37]} Ne8 {[%emt 0:03:56]} 15. Bg2 {[%emt 0:06:21]} Rd8 {[%emt 0:09:03]} 16. f5 {[%emt 0:17:47]} e5 {[%emt 0:01:07]} 17. f6 {[%emt 0:08:22]} exd4 {[%emt 0:06:17]} 18. Nd5 {[%emt 0:00:46]} Bxd5 {[%emt 0:00:13]} 19. exd5 {[%emt 0:00:04]} gxf6 {[%emt 0:12:01]} 20. gxf6 {[%emt 0:01:12]} Bxf6 {[%emt 0:07:04]} 21. Ra3 {[%emt 0:05:26]} Be5 {[%emt 0:04:03]} 22. b4 {[%emt 0:06:44]} Nd7 {[%emt 0:04:46]} 23. Rh3 {[%emt 0:06:00]} f5 {[%emt 0:02:44]} 24. Qh5 {[%emt 0:02:14]} Ndf6 {[%emt 0:00:54]} 25. Qxf5 {[%emt 0:02:30]} Kh8 {[%emt 0:05:45]} 26. Be4 {[%emt 0:08:23]} Rg8 {[%emt 0:02:51]} 27. Bg5 {[%emt 0:09:07]} Qd7 {[%emt 0:04:49]} 28. Bg2 {[%emt 0:09:40]} Qxf5 {[%emt 0:01:29]} 29. Rxf5 {[%emt 0:00:05]} Rc8 {[%emt 0:02:42]} 30. Bxf6+ {[%emt 0:04:27]} Nxf6 {[%emt 0:00:22]} 31. Rf2 {[%emt 0:00:40]} Rc3 {[%emt 0:01:12]} 32. Rh4 {[%emt 0:02:08]} Re3 {[%emt 0:01:58]} 33. Bf1 {[%emt 0:00:36]} Re1 {[%emt 0:00:42]} 34. Rh3 {[%emt 0:00:42]} Ne4 {[%emt 0:04:49]} 0-1

[Event "9. Korbacher Open 2017"]
[Site "Korbach"]
[Date "2017.10.21"]
[Round "5"]
[White "Lesny, Florian"]
[Black "Hild, Sebastian"]
[Result "1-0"]
[ECO "C55"]
[WhiteElo "1997"]
[BlackElo "1786"]
[Annotator "NA"]
[PlyCount "98"]
[EventDate "2017.??.??"]
[EventType "swiss"]
[EventCountry "GER"]
[SourceTitle "playchess.com"]
[Source "ChessBase"]
[SourceQuality "1"]
[TimeControl "40/5400+30:1800+30"]

1. e4 {[%emt 0:00:00]} e5 {[%emt 0:07:40]} 2. Nf3 {[%emt 0:00:00]} Nc6 {[%emt 0:00:06]} 3. Bc4 {[%emt 0:00:00]} Nf6 {[%emt 0:00:22]} 4. d3 {[%emt 0:00:04]} Be7 {[%emt 0:02:59]} 5. O-O {[%emt 0:00:37]} d6 {[%emt 0:00:41]} 6. c3 {[%emt 0:00:27]} Bg4 {[%emt 0:00:45]} 7. Nbd2 {[%emt 0:01:12]} O-O {[%emt 0:04:15]} 8. Bb3 {[%emt 0:00:26]} a6 {[%emt 0:02:06]} 9. Re1 {[%emt 0:01:00]} h6 {[%emt 0:00:40]} 10. Nf1 {[%emt 0:00:40]} Nh7 {[%emt 0:00:41]} 11. h3 {[%emt 0:01:14]} Bh5 {[%emt 0:00:55]} 12. Ng3 {[%emt 0:01:15]} Bg6 {[%emt 0:01:07]} 13. Nh2 {[%emt 0:06:46]} Kh8 {[%emt 0:02:47]} 14. Ng4 {[%emt 0:05:19]} f5 {[%emt 0:03:12]} 15. exf5 {[%emt 0:01:18]} Bxf5 {[%emt 0:00:14]} 16. Nxf5 {[%emt 0:00:41]} Rxf5 {[%emt 0:00:03]} 17. Bc2 {[%emt 0:02:15]} d5 {[%emt 0:08:21]} 18. d4 {[%emt 0:06:52]} e4 {[%emt 0:02:35]} 19. f3 {[%emt 0:01:31]} Bh4 {[%emt 0:04:41]} 20. fxe4 {[%emt 0:01:33]} Bxe1 {[%emt 0:01:50]} 21. exf5 {[%emt 0:00:08]} Bh4 {[%emt 0:01:42]} 22. Bf4 {[%emt 0:06:54]} Nf6 {[%emt 0:02:27]} 23. Nxf6 {[%emt 0:01:35]} Bxf6 {[%emt 0:02:06]} 24. Qd2 {[%emt 0:05:25]} Bg5 {[%emt 0:05:29]} 25. Bxg5 {[%emt 0:01:03]} Qxg5 {[%emt 0:00:51]} 26. Qd3 {[%emt 0:03:00]} Qf6 {[%emt 0:00:44]} 27. Re1 {[%emt 0:00:34]} Rf8 {[%emt 0:01:05]} 28. Re6 {[%emt 0:02:07]} Qf7 {[%emt 0:00:37]} 29. f6 {[%emt 0:01:53]} g6 {[%emt 0:06:41]} 30. Qxg6 {[%emt 0:01:50]} Qxg6 {[%emt 0:00:11]} 31. Bxg6 {[%emt 0:00:07]} Nd8 {[%emt 0:00:13]} 32. Re8 {[%emt 0:05:39]} Kg8 {[%emt 0:09:40]} 33. Rxf8+ {[%emt 0:00:23]} Kxf8 {[%emt 0:00:02]} 34. Kf2 {[%emt 0:00:48]} Ne6 {[%emt 0:01:23]} 35. Kf3 {[%emt 0:03:10]} c5 {[%emt 0:00:26]} 36. dxc5 {[%emt 0:08:54]} Nxc5 {[%emt 0:00:21]} 37. Kf4 {[%emt 0:01:11]} Na4 {[%emt 0:01:15]} 38. Ke5 {[%emt 0:00:32]} Nxb2 {[%emt 0:00:22]} 39. Kxd5 {[%emt 0:00:09]} b5 {[%emt 0:00:21]} 40. Kd4 {[%emt 0:04:05]} Nd1 {[%emt 0:33:21]} 41. Bh5 {[%emt 0:30:41]} Nb2 {[%emt 0:00:59]} 42. g4 {[%emt 0:01:51]} Nc4 {[%emt 0:02:07]} 43. h4 {[%emt 0:00:53]} Nd6 {[%emt 0:01:53]} 44. Ke5 {[%emt 0:00:36]} Nc4+ {[%emt 0:00:56]} 45. Ke6 {[%emt 0:00:25]} Nd2 {[%emt 0:00:29]} 46. g5 {[%emt 0:01:10]} hxg5 {[%emt 0:01:12]} 47. hxg5 {[%emt 0:00:03]} Ne4 {[%emt 0:00:24]} 48. g6 {[%emt 0:00:55]} Nxc3 {[%emt 0:00:17]} 49. g7+ {[%emt 0:00:12]} Kg8 {[%emt 0:00:29]} 1-0

[Event "9. Korbacher Open 2017"]
[Site "Korbach"]
[Date "2017.10.21"]
[Round "5"]
[White "Ohst, Holger"]
[Black "Forgach, Andreas"]
[Result "1-0"]
[ECO "A15"]
[WhiteElo "1986"]
[BlackElo "1851"]
[Annotator "NA"]
[PlyCount "79"]
[EventDate "2017.??.??"]
[EventType "swiss"]
[EventCountry "GER"]
[SourceTitle "playchess.com"]
[Source "ChessBase"]
[SourceQuality "1"]
[TimeControl "40/5400+30:1800+30"]

1. c4 {[%emt 0:01:48]} Nf6 {[%emt 0:00:18]} 2. g3 {[%emt 0:00:10]} g6 {[%emt 0:00:18]} 3. Bg2 {[%emt 0:00:02]} Bg7 {[%emt 0:00:47]} 4. Nc3 {[%emt 0:00:03]} d6 {[%emt 0:01:01]} 5. d3 {[%emt 0:00:30]} O-O {[%emt 0:00:49]} 6. h3 {[%emt 0:03:03]} e5 {[%emt 0:01:36]} 7. Rb1 {[%emt 0:04:09]} a5 {[%emt 0:02:06]} 8. e4 {[%emt 0:01:29]} Nc6 {[%emt 0:01:10]} 9. Nge2 {[%emt 0:00:31]} Bd7 {[%emt 0:05:08]} 10. O-O {[%emt 0:00:27]} Qc8 {[%emt 0:12:14]} 11. Kh2 {[%emt 0:00:09]} Ne7 {[%emt 0:27:00]} 12. Be3 {[%emt 0:04:03]} c6 {[%emt 0:03:26]} 13. Rc1 {[%emt 0:07:08]} c5 {[%emt 0:03:21]} 14. Qd2 {[%emt 0:05:25]} Nc6 {[%emt 0:06:34]} 15. Bh6 {[%emt 0:05:04]} Nd4 {[%emt 0:02:05]} 16. Bxg7 {[%emt 0:00:51]} Kxg7 {[%emt 0:00:10]} 17. f4 {[%emt 0:00:44]} Nxe2 {[%emt 0:02:21]} 18. Qxe2 {[%emt 0:02:25]} exf4 {[%emt 0:06:50]} 19. Rxf4 {[%emt 0:05:42]} Be6 {[%emt 0:08:10]} 20. e5 {[%emt 0:04:57]} Nh5 {[%emt 0:02:08]} 21. Rh4 {[%emt 0:01:36]} dxe5 {[%emt 0:02:32]} 22. Qxe5+ {[%emt 0:00:28]} f6 {[%emt 0:00:16]} 23. Qe3 {[%emt 0:04:03]} Ra6 {[%emt 0:01:25]} 24. Bf3 {[%emt 0:05:38]} Bf7 {[%emt 0:03:32]} 25. Bxh5 {[%emt 0:08:08]} gxh5 {[%emt 0:00:19]} 26. Rf1 {[%emt 0:00:27]} Rb6 {[%emt 0:02:16]} 27. b3 {[%emt 0:00:40]} Re6 {[%emt 0:01:27]} 28. Re4 {[%emt 0:02:07]} Qc6 {[%emt 0:03:12]} 29. Qf4 {[%emt 0:01:35]} Rxe4 {[%emt 0:00:31]} 30. dxe4 {[%emt 0:00:15]} Bg6 {[%emt 0:00:33]} 31. Nd5 {[%emt 0:00:43]} Qe6 {[%emt 0:00:37]} 32. Nc7 {[%emt 0:10:41]} Qe7 {[%emt 0:00:50]} 33. e5 {[%emt 0:00:35]} f5 {[%emt 0:00:46]} 34. Nd5 {[%emt 0:00:58]} Qe6 {[%emt 0:00:25]} 35. Re1 {[%emt 0:01:14]} Rd8 {[%emt 0:00:55]} 36. Qf3 {[%emt 0:04:56]} b5 {[%emt 0:00:12]} 37. Re2 {[%emt 0:05:37]} bxc4 {[%emt 0:00:13]} 38. bxc4 {[%emt 0:00:03]} Rd7 {[%emt 0:00:31]} 39. Qc3 {[%emt 0:02:19]} a4 {[%emt 0:00:41]} 40. Nf4 {[%emt 0:00:19]} 1-0

[Event "9. Korbacher Open 2017"]
[Site "Korbach"]
[Date "2017.10.21"]
[Round "5"]
[White "Alkayas, Shadi"]
[Black "Nemetz, Markus"]
[Result "0-1"]
[ECO "B90"]
[WhiteElo "1975"]
[BlackElo "1951"]
[Annotator "NA RC"]
[PlyCount "138"]
[EventDate "2017.??.??"]
[EventType "swiss"]
[EventCountry "GER"]
[SourceTitle "playchess.com"]
[Source "ChessBase"]
[SourceQuality "1"]
[TimeControl "40/5400+30:1800+30"]

1. e4 {[%emt 0:00:00]} c5 {[%emt 0:00:09]} 2. Nf3 {[%emt 0:00:00]} d6 {[%emt 0:00:08]} 3. d4 {[%emt 0:00:31]} cxd4 {[%emt 0:00:07]} 4. Nxd4 {[%emt 0:00:01]} Nf6 {[%emt 0:00:11]} 5. Nc3 {[%emt 0:00:25]} a6 {[%emt 0:00:06]} 6. Bc4 {[%emt 0:06:24]} e6 {[%emt 0:00:13]} 7. Bb3 {[%emt 0:03:24]} Nbd7 {[%emt 0:01:37]} 8. f3 {[%emt 0:06:25] B86: Sicilian Scheveningen/Najdorf: 6 Bc4, without early ...b5} (8. O-O Nc5 9. Re1 Be7 10. f4 O-O 11. e5 Ne8 12. Be3 Bd7 13. Bf2 Rc8 14. Ne4 Nxb3 15. axb3 dxe5 16. fxe5 f6 17. exf6 Nxf6 18. Bg3 Qb6 {0-1 (56) Ivanisevic,I (2638)-Cheparinov,I (2688) Minsk 2017}) 8... Nc5 {[%emt 0:00:18]} 9. O-O {[%emt 0:03:09]} Qc7 {[%emt 0:02:47]} 10. Re1 {[%emt 0:01:58]} Be7 {[%emt 0:00:49]} 11. a3 $146 {[%emt 0:00:32]} ({Predecessor:} 11. Be3 b5 12. a3 O-O 13. Qd2 Bb7 14. Rad1 Nxb3 15. Nxb3 Rac8 16. Nd4 Nd7 17. Kh1 {0-1 (47) Veszpremi,A (2156)-Csolto,R (2318) Hungary 2007}) 11... Nxb3 {[%emt 0:00:09]} 12. Nxb3 {[%emt 0:00:34]} O-O {[%emt 0:01:20]} 13. Be3 {[%emt 0:00:48]} b6 {[%emt 0:04:40]} 14. Bf2 {[%emt 0:04:31]} Rd8 {[%emt 0:05:19]} 15. Qe2 {[%emt 0:00:25]} Bb7 {[%emt 0:01:05]} 16. Na4 {[%emt 0:01:53]} Nd7 {[%emt 0:00:27]} 17. Rad1 {[%emt 0:05:48]} Nc5 {[%emt 0:04:08]} 18. Nbxc5 {[%emt 0:04:51]} bxc5 {[%emt 0:01:33]} 19. c4 {[%emt 0:00:52]} Qa5 {[%emt 0:01:49]} 20. Nc3 {[%emt 0:00:33]} Bf6 {[%emt 0:01:35]} 21. Rd3 {[%emt 0:02:21]} Rac8 22. Qc2 {[%emt 0:05:25]} Bc6 {[%emt 0:08:14]} 23. Red1 {[%emt 0:03:47]} Qc7 {[%emt 0:03:45]} 24. Bg3 {[%emt 0:03:14]} Bd4+ {[%emt 0:00:44]} 25. Kf1 {[%emt 0:05:02]} Qb7 {[%emt 0:08:15]} 26. b3 {[%emt 0:08:25]} h6 {[%emt 0:05:57]} 27. Ne2 {[%emt 0:03:11]} e5 {[%emt 0:00:23]} 28. Nxd4 {[%emt 0:01:12]} exd4 {[%emt 0:00:56]} 29. Rb1 {[%emt 0:02:34]} Qd7 {[%emt 0:01:21]} 30. Rdd1 {[%emt 0:02:44]} Rf8 {[%emt 0:03:30]} 31. Re1 {[%emt 0:04:27]} Rce8 {[%emt 0:03:19]} 32. Rbd1 {[%emt 0:03:51]} Re6 {[%emt 0:04:16]} 33. Rd2 {[%emt 0:01:00]} Rfe8 {[%emt 0:00:59]} 34. Rde2 {[%emt 0:00:52]} h5 {[%emt 0:03:35]} 35. Qd2 {[%emt 0:04:19]} Qe7 {[%emt 0:02:24]} 36. h4 {[%emt 0:03:55]} f6 {[%emt 0:02:57]} 37. Bf4 {[%emt 0:01:18]} Kh8 {[%emt 0:01:48]} 38. Kf2 {[%emt 0:02:43]} Qf7 {[%emt 0:01:15]} 39. Rh1 {[%emt 0:02:49]} f5 {[%emt 0:04:46]} 40. g3 {[%emt 0:02:19]} fxe4 {[%emt 0:31:17]} 41. fxe4 {[%emt 0:30:09]} Bxe4 {[%emt 0:02:41]} 42. Rhe1 {[%emt 0:00:38]} Qf5 {[%emt 0:00:32]} 43. Kg1 {[%emt 0:00:48]} Qg4 {[%emt 0:05:06]} 44. Kh2 {[%emt 0:00:00]} Bc6 {[%emt 0:00:00]} 45. Rxe6 {[%emt 0:00:00]} Rxe6 {[%emt 0:00:00]} 46. Rxe6 {[%emt 0:00:00]} Qxe6 {[%emt 0:00:00]} 47. Kg1 {[%emt 0:00:00]} d5 {[%emt 0:00:00]} 48. Kf2 {[%emt 0:00:00]} dxc4 {[%emt 0:00:00]} 49. bxc4 {[%emt 0:00:00]} Qxc4 {[%emt 0:00:00]} 50. Qe2 {[%emt 0:00:00]} Qd5 {[%emt 0:00:00]} 51. Qxa6 {[%emt 0:00:00]} d3 {[%emt 0:00:00]} 52. Qc8+ {[%emt 0:01:43]} Kh7 {[%emt 0:00:00]} 53. Qh3 {[%emt 0:00:03]} Qf3+ {[%emt 0:00:00]} 54. Kg1 {[%emt 0:00:07]} Qd1+ {[%emt 0:00:00]} 55. Qf1 {[%emt 0:00:05]} Qc2 {[%emt 0:00:00]} 56. Qf2 {[%emt 0:00:55]} Qc4 {[%emt 0:00:00]} 57. Be3 {[%emt 0:01:07]} Qd5 {[%emt 0:00:00]} 58. Qh2 {[%emt 0:00:32]} c4 {[%emt 0:00:00]} 59. Bd2 {[%emt 0:00:16]} Qf3 {[%emt 0:00:00]} 60. Qh3 {[%emt 0:01:38]} g6 {[%emt 0:00:00]} 61. Bc3 {[%emt 0:01:24]} Qe3+ {[%emt 0:00:00]} 62. Kf1 {[%emt 0:00:33]} Qc1+ {[%emt 0:00:00]} 63. Be1 {[%emt 0:00:38]} d2 {[%emt 0:00:00]} 64. Qe6 {[%emt 0:00:03]} Qxe1+ {[%emt 0:00:00]} 65. Qxe1 {[%emt 0:00:01]} dxe1=Q+ {[%emt 0:00:00]} 66. Kxe1 {[%emt 0:00:01]} Ba4 {[%emt 0:00:00]} 67. Kd2 {[%emt 0:00:05]} Kg7 {[%emt 0:00:00]} 68. Kc3 {[%emt 0:00:00]} Bb5 {[%emt 0:00:00]} 69. a4 {[%emt 0:00:09]} Ba6 {[%emt 0:00:00]} 0-1